Cogmind - Beta 16 @@@ ROGUE MODE // 2025.11.22 @ 23:07:10 Player: 777moneymaker Result: Destroyed by 1N-1WZ(R) with Subdweller Beam Cannon Performance ------------- Evolutions (0) 0 Regions Visited (2) 400 Robots Destroyed (16) 80 Value Destroyed (168) 168 Prototype IDs (0) 0 Alien Tech Used (0) 0 Bonus (0) 0 TOTAL SCORE: 648 Bonus ------- None Cogmind --------- Core Integrity 0/250 Matter 291/300 Energy 97/100 System Corruption 0% Temperature Cool (9) Movement Core (100) Ox1 Location -10/Subcaves Parts ------- > --- POWER (1) -------- (None) > --- PROPULSION (2) --- (None) > --- UTILITY (2) ------ Small Storage Unit > --- WEAPON (2) ------- (None) > --- INVENTORY (8) ---- Light Treads Light Treads Heat Sink Improved Terrain Scanner Scrap Shield Peak State ------------ > --- POWER ------------ Light Ion Engine > --- PROPULSION ------- Wheel Wheel > --- UTILITY ---------- Small Storage Unit Seismic Detector > --- WEAPON ----------- EM Pulse Gun Grenade Launcher > --- INVENTORY -------- Light Treads Light Treads Heat Sink Improved Terrain Scanner Scrap Shield Small Laser Small Laser [Rating: 8] Favorites ----------- Power Light Ion Engine Engine Light Ion Engine Propulsion Wheel Treads Light Treads Wheel Wheel Utility Small Storage Unit Device Seismic Detector Storage Small Storage Unit Weapon EM Pulse Gun Energy Gun EM Pulse Gun Launcher Grenade Launcher Build | -11 -10 -10 ------- Run | Yrd Mat Sub Slots Evolved . | . . . Power . | . . . Propulsion . | . . . Utility . | . . . Weapon . | . . . Parts Attached 12 | 8 3 1 Power 3 | 2 . 1 Engine 3 | 2 . 1 Core . | . . . Reactor . | . . . Propulsion 3 | 3 . . Treads 1 | 1 . . Leg . | . . . Wheel 2 | 2 . . Hover . | . . . Flight . | . . . Utility 2 | 2 . . Device 1 | 1 . . Storage 1 | 1 . . Processor . | . . . Hackware . | . . . Protection . | . . . Artifact . | . . . Weapon 4 | 1 3 . Energy Gun 3 | 1 2 . Energy Cannon . | . . . Ballistic Gun . | . . . Ballistic Cannon . | . . . Launcher 1 | . 1 . Special Weapon . | . . . Impact Weapon . | . . . Slashing Weapon . | . . . Piercing Weapon . | . . . Special Melee Weapon . | . . . Unidentified Prototypes . | . . . Parts Lost 9 | 1 . 8 Power 2 | 1 . 1 Propulsion 2 | . . 2 Utility 1 | . . 1 Weapon 4 | . . 4 Highest Loss Streak 8 | 1 . 8 To Critical Strikes . | . . . Average Backups 5 | 4 6 6 Power . | . 1 . Propulsion 1 | 1 2 2 Utility 1 | . 1 2 Weapon 2 | 1 2 1 Tool/Special . | . . . Unused Backups 5 | 1 . 4 Power . | . . . Propulsion 2 | 1 . 1 Utility 3 | . . 3 Weapon . | . . . Tool/Special . | . . . Average Slot Usage (%) 89 | . 89 88 Engine 13 | . 14 12 Wheel 26 | . 28 23 Device 13 | . 14 11 Storage 14 | . 14 14 Energy Gun 16 | . 18 14 Launcher 3 | . . 11 Peak Build Rating 8 | 6 7 8 Average Rating 6 | 5 6 7 On Entrance 4 | . 6 7 Avg Prop Armor Cover (%) 14 | 14 . . Naked Turns . | . . . Heaviest Build 14 | 11 14 14 Greatest Support 20 | 20 20 20 Greatest Overweight (x) . | . . . Average Overweight (x) . | . . . Largest Inventory Capacity 8 | 8 8 8 Average Capacity 7 | 7 8 8 Most Carried 8 | 8 8 8 Average Carried 6 | 4 6 7 Final Capacity 8 | 8 8 8 Final Carried 8 | 6 8 6 Class Distribution -------------------- 100% | Mutant Dominant Class ---------------- Mutant | -10/Materials Mutant | -10/Subcaves Resources | -11 -10 -10 ----------- Run | Yrd Mat Sub Matter Collected 356 | 275 70 11 Remotely . | . . . Salvage Created 379 | 179 160 40 Parts 29 | 8 19 2 Haulers Intercepted . | . . . Recyclers Shooed . | . . . Parts Field Recycled . | . . . Retrieved Matter . | . . . Parts Self-Destructed . | . . . Prevented . | . . . Parts Restored . | . . . Kills | -11 -10 -10 ------- Run | Yrd Mat Sub Combat Hostiles Destroyed 5 | . 4 1 Guns 1 | . 1 . AOE 4 | . 3 1 Classes Destroyed 7 | 2 4 1 Worker 1 | . 1 . Builder 3 | . 3 . Tunneler 6 | 5 1 . Recycler 1 | 1 . . Swarmer 3 | . 3 . Grunt 1 | . 1 . Subdweller 1 | . . 1 Best Kill Streak 5 | 3 5 1 Combat Bots Only 3 | . 3 1 Max Kills in Single Turn 2 | 1 2 1 Gunslinging . | . . . Exploded 2 | . 2 1 Melee . | . . . Uniques/NPCs Destroyed . | . . . Combat | -11 -10 -10 -------- Run | Yrd Mat Sub Hostile Shots Fired 45 | . 14 31 Missed 12 | . 4 8 Hits 33 | . 10 23 Projectile 33 | . 10 23 Critical Strikes 1 | . . 1 Damage Taken 738 | 40 82 616 Core 276 | . 15 261 Absorbed by Shields . | . . . Core Remaining (%) 100 | 100 . . Volleys Fired 58 | 28 23 7 Largest 2 | 1 2 2 Hottest 80 | 40 80 80 Shots Fired 62 | 28 26 8 Gun 57 | 28 23 6 Cannon . | . . . Launcher 5 | . 3 2 Special . | . . . Kinetic . | . . . Thermal 12 | . 6 6 Explosive 5 | . 3 2 Electromagnetic 45 | 28 17 . Robot Hit Streak 9 | 5 8 9 Robot Miss Streak 3 | 3 2 . Penetration Max . | . . . Secondary Targets . | . . . Shots Hit Robots 37 | 16 14 7 Core Hits 23 | 7 11 5 Critical Kills . | . . . Critical Parts Destroyed . | . . . Critical Strikes . | . . . Melee Attacks . | . . . Impact . | . . . Slashing . | . . . Piercing . | . . . Sneak Attacks . | . . . Combat Hostiles . | . . . Follow-up Attacks . | . . . Damage Inflicted 1124 | 278 445 401 Guns 450 | 212 171 67 Cannons . | . . . Explosions 674 | 66 274 334 Melee . | . . . Ramming . | . . . Kinetic . | . . . Thermal 259 | 66 126 67 Explosive 525 | . 191 334 Electromagnetic 340 | 212 128 . Impact . | . . . Slashing . | . . . Piercing . | . . . Highest Corruption . | . . . Average Corruption . | . . . Corruption Purged . | . . . Corruption Blocked . | . . . Overload Shots . | . . . Overflow Damage 21 | 16 5 . Projectiles . | . . . Explosions 21 | 16 5 . Melee . | . . . Knockbacks . | . . . Impact . | . . . Kinetic . | . . . Secondary . | . . . Self-Inflicted Damage 89 | 40 . 49 Shots 3 | 1 . 2 Rammed . | . . . Targets Rammed . | . . . Kicked . | . . . Crushed . | . . . Highest Temperature 36 | 7 36 . Average Temperature 18 | 4 19 . Received Heat Transfer 114 | . 6 108 Siege Activations . | . . . Martial Activations . | . . . Shielding Activations . | . . . Robots Disrupted . | . . . Combat Hostiles . | . . . Robots Corrupted . | . . . Combat Hostiles . | . . . Parts Fried 2 | 1 1 . Impact Corruptions . | . . . Robots Melted . | . . . Combat Hostiles . | . . . Parts Melted 1 | . 1 . Heat Transferred 400 | 50 200 150 Parts Sabotaged . | . . . Parts Stolen . | . . . Parts Stripped . | . . . Power Chain Reactions 3 | 2 1 . Alert | -11 -10 -10 ------- Run | Yrd Mat Sub Maximum Alert Level . | . . . Low Security (%) 100 | 100 100 . Level 1 . | . . . Level 2 . | . . . Level 3 . | . . . Level 4 . | . . . Level 5 . | . . . High Security . | . . . Max Security . | . . . Peak Influence 90 | 5 90 . Initial . | . . . Average 20 | 1 35 . Influence Increases 180 | 30 150 . Destroy 0b10 Robot/C 80 | . 80 . Destroy 0b10 Robot/NC 55 | 30 25 . Destroy Leader 10 | . 10 . Successful Hack 6 | . 6 . Destroy Structure 14 | . 14 . Lose Combat Pursuer 15 | . 15 . Influence Decreases 180 | 30 76 74 Entered New Map 36 | . . 36 Time Decay 131 | 25 76 30 Lost Part 13 | 5 . 8 Squads Dispatched . | . . . Investigation . | . . . Extermination . | . . . Reinforcement . | . . . Assault . | . . . Garrison . | . . . Intercept . | . . . Searches Triggered . | . . . Construction Impeded . | . . . Haulers Reinforced . | . . . Active Scanning Responses . | . . . Cargo Convoy Interrupts . | . . . Stealth | -11 -10 -10 --------- Run | Yrd Mat Sub Distress Signals 1 | . 1 . Communications Jammed . | . . . Distress Signals . | . . . Times Spotted 21 | . 12 9 Peak Tracking Total 8 | . 5 8 Tactical Retreats 1 | . 1 . Traps | -11 -10 -10 ------- Run | Yrd Mat Sub Traps Triggered . | . . . Indirectly . | . . . Trap Hack Attempts . | . . . Triggered . | . . . Disarmed . | . . . Reprogrammed . | . . . Reused . | . . . Traps Extracted . | . . . Installed . | . . . Triggered . | . . . Machines | -11 -10 -10 ---------- Run | Yrd Mat Sub Machines Disabled . | . . . Max in Single Turn . | . . . Machines Repaired . | . . . Machines Dismantled . | . . . Machines Sabotaged . | . . . Overloaded Fab Kills . | . . . Hacking | -11 -10 -10 --------- Run | Yrd Mat Sub Machines Accessed 1 | . 1 . Terminals 1 | . 1 . Fabricators . | . . . Repair Stations . | . . . Recycling Units . | . . . Scanalyzers . | . . . Garrison Access . | . . . Total Hacks 3 | . 3 . Successful 2 | . 2 . Failed 1 | . 1 . Catastrophic . | . . . Database Lockouts . | . . . Manual 2 | . 2 . Terminals 3 | . 3 . Fabricators . | . . . Repair Stations . | . . . Recycling Units . | . . . Scanalyzers . | . . . Garrison Access . | . . . Terminal Hacks 2 | . 2 . Record 1 | . 1 . Zone Layout 1 | . 1 . Fabricator Hacks . | . . . Repair Station Hacks . | . . . Recycling Unit Hacks . | . . . Scanalyzer . | . . . Garrison Access Hacks . | . . . Unauthorized Hacks . | . . . Terminals . | . . . Fabricators . | . . . Repair Stations . | . . . Recycling Units . | . . . Scanalyzers . | . . . Garrison Access . | . . . Data Cores Recovered . | . . . Used . | . . . Hacking Detections 1 | . 1 . Full Trace Events . | . . . Feedback Events . | . . . Feedback Blocked . | . . . Robot Schematics Acquired . | . . . Robots Built . | . . . Authchips . | . . . Time . | . . . Total Robot Build Rating . | . . . Part Schematics Acquired . | . . . Parts Built . | . . . Authchips . | . . . Time . | . . . Total Part Build Rating . | . . . Part Studies Acquired . | . . . Parts Repaired . | . . . Time . | . . . Parts Recycled . | . . . Recycled Matter . | . . . Retrieved Matter . | . . . Retrieved Components . | . . . Parts Scanalyzed . | . . . Part Schematics Acquired . | . . . Parts Damaged . | . . . Bothacking | -11 -10 -10 ------------ Run | Yrd Mat Sub Used RIF Installer . | . . . Robots Hacked . | . . . Non-combat . | . . . Combat . | . . . Robot Hacks Applied . | . . . Relay Couplers Released . | . . . Fabnet Peak Effective % . | . . . Robots Rewired . | . . . Allies Hacked . | . . . Hacks Repelled . | . . . Allies | -11 -10 -10 -------- Run | Yrd Mat Sub Total Allies . | . . . Largest Group . | . . . Highest-Rated Group . | . . . Highest-Rated Ally . | . . . Total Orders . | . . . Ally Attacks . | . . . Total Damage . | . . . Kills . | . . . Allies Corrupted . | . . . Allies Melted . | . . . Intel | -11 -10 -10 ------- Run | Yrd Mat Sub Active Infowar (turns) 491 | 148 270 73 Seismic 491 | 148 270 73 Robot Analysis Total . | . . . Derelict Logs Recovered . | . . . Drone Launches . | . . . Drone Recoveries . | . . . Exploration | -11 -10 -10 ------------- Run | Yrd Mat Sub Turns Passed 569 | 214 270 85 Spaces Moved 354 | 160 157 37 Core 2 | 2 . . Treads . | . . . Legs . | . . . Wheels 352 | 158 157 37 Hover . | . . . Flight . | . . . Fastest Speed 50 | 50 80 80 Average Speed 79 | 79 80 80 Slowest Speed 80 | 80 80 80 Overloaded Moves . | . . . Propulsion Burnouts . | . . . Robots Hopped . | . . . Potential Cave-ins . | . . . Cave-ins Triggered . | . . . Exploration Rate (%) 15 | 5 39 2 Regions Visited 2 Branch Regions 1 Pre-discovered Areas . | . . . Known Exits Taken . | . . . Unknown Exits Taken 2 | 1 1 . Scrap Searched . | . . . Spaces Dug 5 | . 5 . Terrain Destroyed 48 | 9 13 26 Melee . | . . . Projectile . | . . . AOE 48 | 9 13 26 Terrain Rammed . | . . . Walls Destroyed . | . . . Machines Disabled . | . . . Actions | -11 -10 -10 --------- Run | Yrd Mat Sub Total 576 | 216 275 85 Wait 133 | 10 88 35 Move 352 | 159 156 37 Hop . | . . . Pick Up 12 | 9 2 1 Fast Attach 5 | 5 . . Attach 8 | 3 2 3 Detach 3 | 1 2 . Swap 3 | . 2 1 Drop 2 | 1 . 1 Fire 58 | 28 23 7 Melee . | . . . Ram . | . . . Kick . | . . . Crush . | . . . Escape Stasis . | . . . Rewire . | . . . Trap . | . . . Miscellaneous . | . . . Route ------- -11/Scrapyard -10/Materials -10/Subcaves History --------- Turn | Location | Event 29 | -11/Scrapyard | Discovered new exit (range 16) 215 | -11/Scrapyard | Entered Materials 311 | -10/Materials | Build established: Mutant 466 | -10/Materials | Discovered new exit (range 7) 485 | -10/Materials | Entered Subcaves 545 | -10/Subcaves | Ambushed by swarm of Subdwellers 548 | -10/Subcaves | Ambushed by Subdwellers from Twisted Machinery 554 | -10/Subcaves | Ambushed by Subdweller buried in earth 556 | -10/Subcaves | Ambushed by Subdwellers from Twisted Machinery 563 | -10/Subcaves | Core integrity fell below 50% 568 | -10/Subcaves | Core integrity fell below 20% 570 | -10/Subcaves | Destroyed by 1N-1WZ(R) with Subdweller Beam Cannon Last Messages --------------- 00554_ Destroyed Wheel. [Achievement: Do Not Disturb] 00555_ 3D-QNR(R): "ARGHSUB!" 00556_ 1N-1WZ(R) angrily emerges from the Twisted Machinery. 00556_ 3K-6YR(R) destroyed. 00556_ EM Pulse Gun destroyed. 00557_ YD-MOO(R) affixes Scrap Shield Fragment to Scrap Shield. 00557_ Grenade Launcher destroyed. 00557_ YD-7Q0(R) affixes Scrap Shield Fragment to Scrap Shield. 00558_ Seismic Detector destroyed. [Achievement: There's More Where That Came From] 00560_ GI-QQJ(R) destroyed. 00562_ Sml. Laser destroyed. 00563_ 3D-QNR(R) affixes Scrap Shield Fragment to Scrap Shield. 00565_ YD-MOO(R) affixes Scrap Shield Fragment to Scrap Shield. 00566_ Lgt. Ion Engine destroyed. 00568_ Wheel destroyed. 00568_ ET-U2Y(R) destroyed. 00569_ The unstable cave ceiling collapses. 00569_ Sml. Laser destroyed. Map ----- +----------------------------------------------------+ | ?????????????????????????????????????????????????? | | ???########?#####????????????????????????????????? | | ???# * ### #????????????????????????????????? | | ### #????????????????????????????????? | | #????????????????????????????????? | | ###??????????????????????????????? | | #### #### #??????????????????????????????? | | ???## ###??# ##??????????????????????????????? | | ????## ##????# #??????????????????????????????? | | ?????###??????# #??????????????????????????????? | | ?????????????## ##??????????????????????????????? | | ?????????????# ##??????????????????????????????? | | ?????????????## #??????????????????????????????? | | ?????????????## #??????????????????????????????? | | ?????????????# #??????????????????????????????? | | ?????????????# ##?????????????????????????????? | | ?????????????## ###???????????????????????????? | | ??????????????# #???????????????????????????? | | ??????????????# #???????????????????????????? | | ??????????????## ##???????????????????????????? | | ???????????????## ###?????????????????????????? | | ????????????????### # #????????????????????????? | | ???????????????????# [ ????????????????????????? | | ???????????????????# #! ##??????????????????????? | | ???????????????????# %R!##?????????????????????? | | ???????????????????# %R@]#?????????????????????? | | ???????????????????# RR=!#?????????????????????? | | ???????????????????# #"%&# #????????????????????? | | ??????????????????# ? ######????????????????????? | | ???????????????????? ??????????????????????????? | | ??????????????????? ???????????????????????????? | | ??????????????????## ????????????????????????????? | | ???????????????????#?????????????????????????????? | | ?????????????????????????????????????????????????? | | ?????????????????????????????????????????????????? | | ?????????????????????????????????????????????????? | | ?????????????????????????????????????????????????? | | ?????????????????????????????????????????????????? | | ?????????????????????????????????????????????????? | | ?????????????????????????????????????????????????? | | ?????????????????????????????????????????????????? | | ?????????????????????????????????????????????????? | | ?????????????????????????????????????????????????? | | ?????????????????????????????????????????????????? | | ?????????????????????????????????????????????????? | | ?????????????????????????????????????????????????? | | ?????????????????????????????????????????????????? | | ?????????????????????????????????????????????????? | | ?????????????????????????????????????????????????? | | ?????????????????????????????????????????????????? | +----------------------------------------------------+ Best States ------------- Heat Dissipation 25 Energy Generation 10 Energy Capacity 125 Matter Stores 300 Matter Capacity 300 Sight Range 16 Terrain Scan Density 10 Evasion (%) 44 Item Schematics ----------------- None Robot Schematics ------------------ None Fabricated ------------ Nothing Repaired ---------- Nothing Studied --------- None Alien Tech Used ----------------- None Achievements -------------- Do Not Disturb Organ Harvest There's More Where That Came From Challenges ------------ None Game ------ Seed CouplerLargeTendrils Manual? 0 Play Time 00:21:18 Cumulative 11.1 hours Start 2025.11.22 @ 22:47:00 End 2025.11.22 @ 23:07:10 Sessions 1 Manual Loads 0 Difficulty Rogue Special Mode None Game No. 17 Rogue 17 Adventurer 0 Explorer 0 Win Type - Total 0 Types 0/0/0/0/0/0/0/0/0/0 Lore% 1 Gallery% 12 Achievement% 9 Wizard Run 0 Options --------- Layout 0 ASCII 1 Keyboard 0 Movement Mouse Keybinds 0 Fullscreen 2 Font 24/Terminus Map View 76x50 Zoom Use 0% Tactical HUD 1 Map Filters NONE Filters NONE Steam 1 RUN: cf5848ee-07c4-4c2c-992f-a0c523c5338f